Cogmind - Beta 9.3 @@@ ROGUE MODE // 2019.12.22 @ 11:57:21 // Winter2019/RPGLIKE Player: cptwinky Result: Destroyed by G-47 Trooper with Particle Gun Performance ------------- Evolutions (2) 1000 Regions Visited (5) 1000 Robots Destroyed (44) 220 Value Destroyed (1167) 1167 Prototype IDs (22) 440 Alien Tech Used (0) 0 Bonus (408) 408 TOTAL SCORE: 4235 Bonus ------- High Alert Combat Kills 59 Follower Combat Kills 49 Aligned with FarCom 300 Cogmind --------- Core Integrity 0/600 Matter 243/300 Energy 71/160 System Corruption 0% Temperature Cool (18) Movement Rolling (90) Location -8/Materials Parts ------- > --- POWER (1) -------- Light Nuclear Core > --- PROPULSION (2) --- Wheel Compact Wheel > --- UTILITY (2) ------ Improved Terrain Scanner Transport Network Coupler > --- WEAPON (2) ------- Assault Rifle Proton Missile Launcher > --- INVENTORY (4) ---- Protomatter-65 Field Lobotomy Kit Greatsword Peak State ------------ > --- POWER ------------ Light Nuclear Core > --- PROPULSION ------- Wheel Compact Wheel > --- UTILITY ---------- Improved Terrain Scanner Transport Network Coupler > --- WEAPON ----------- Assault Rifle Proton Missile Launcher > --- INVENTORY -------- Field Lobotomy Kit Greatsword [Rating: 14] Favorites ----------- Power Light Nuclear Core Engine Ion Engine Power Core Light Nuclear Core Propulsion Wheel Wheel Wheel Utility Improved Terrain Scanner Device Improved Terrain Scanner Processor Transport Network Coupler Weapon Assault Rifle Energy Gun Small Laser Energy Cannon Beam Cannon Ballistic Gun Assault Rifle Launcher Proton Missile Launcher Build | -11 -10 -10 -10 -9 -8 ------- Run | Scr Mat Min Exi Min Mat Slots Evolved 3 | 3 . . . . . Power . | . . . . . . Propulsion 1 | 1 . . . . . Utility 1 | 1 . . . . . Weapon 1 | 1 . . . . . Parts Attached 14 | 6 6 1 . . 1 Power 3 | 1 2 . . . . Engine 1 | 1 . . . . . Core 2 | . 2 . . . . Reactor . | . . . . . . Propulsion 2 | 2 . . . . . Treads . | . . . . . . Leg . | . . . . . . Wheel 2 | 2 . . . . . Hover . | . . . . . . Flight . | . . . . . . Utility 3 | 1 2 . . . . Device 2 | 1 1 . . . . Storage . | . . . . . . Processor 1 | . 1 . . . . Hackware . | . . . . . . Protection . | . . . . . . Artifact . | . . . . . . Weapon 6 | 2 2 1 . . 1 Energy Gun 1 | 1 . . . . . Energy Cannon 2 | . 1 1 . . . Ballistic Gun 2 | 1 1 . . . . Ballistic Cannon . | . . . . . . Launcher 1 | . . . . . 1 Special Weapon . | . . . . . . Impact Weapon . | . . . . . . Slashing Weapon . | . . . . . . Piercing Weapon . | . . . . . . Special Melee Weapon . | . . . . . . Unidentified Prototypes . | . . . . . . Parts Lost 1 | . . . . . 1 Power . | . . . . . . Propulsion . | . . . . . . Utility . | . . . . . . Weapon 1 | . . . . . 1 Highest Loss Streak 1 | . . . . . 1 Average Slot Usage (%) 99 | . 99 100 100 100 97 Engine 1 | . 3 . . . . Core 12 | . 10 14 14 14 14 Wheel 28 | . 28 28 28 28 28 Device 15 | . 18 14 14 14 14 Processor 12 | . 9 14 14 14 14 Energy Gun 1 | . 4 . . . . Energy Cannon 12 | . 9 14 14 14 6 Ballistic Gun 14 | . 14 14 14 14 14 Naked Turns . | . . . . . . Heaviest Build 15 | 8 12 11 11 11 15 Greatest Support 26 | 26 26 26 26 26 26 Greatest Overweight (x) . | . . . . . . Average Overweight (x) . | . . . . . . Largest Inventory Capacity 4 | 1 1 1 2 4 4 Average Capacity 1 | . 1 1 1 2 4 Most Carried 4 | 1 1 1 2 4 4 Average Carried 1 | . . . 1 2 3 Final Capacity 4 | 1 1 1 2 4 4 Final Carried 4 | 1 1 1 2 4 4 Class Distribution -------------------- 69% | Skirmisher 28% | Hacker-Skirmisher Dominant Class ---------------- Skirmisher | -10/Materials Skirmisher | -10/Mines Hacker-Skirmisher | -10/Exiles Hacker-Skirmisher | -9/Mines Hacker-Mutant | -8/Materials Resources | -11 -10 -10 -10 -9 -8 ----------- Run | Scr Mat Min Exi Min Mat Matter Collected 759 | 252 333 65 . 109 . Remotely . | . . . . . . Salvage Created 1391 | 15 849 127 44 182 174 Parts 84 | 3 44 9 4 14 10 Haulers Intercepted 3 | . 2 . . . 1 Recyclers Shooed 1 | . . 1 . . . Parts Field Recycled . | . . . . . . Retrieved Matter . | . . . . . . Parts Self-Destructed . | . . . . . . Prevented . | . . . . . . Kills | -11 -10 -10 -10 -9 -8 ------- Run | Scr Mat Min Exi Min Mat Combat Hostiles Destroyed 31 | . 16 5 2 7 1 Guns 10 | . 8 . 1 1 . Cannons 20 | . 8 5 1 6 . AOE 1 | . . . . . 1 Classes Destroyed 12 | 1 7 . 1 2 1 Worker 2 | . . . . 1 1 Builder 2 | . 1 . . . 1 Tunneler 1 | 1 . . . . . Hauler 3 | . 2 . . . 1 Recycler 1 | . 1 . . . . Operator 1 | . 1 . . . . Watcher 3 | . 2 . . . 1 Swarmer 9 | . 3 3 . 3 . Grunt 19 | . 13 2 1 3 . Hunter 1 | . . . . . 1 Programmer 1 | . . . 1 . . Assembled 1 | . . . . 1 . Best Kill Streak 5 | 1 5 3 2 4 3 Combat Bots Only 5 | . 5 3 2 3 1 Max Kills in Single Turn 3 | 1 1 1 2 1 3 Gunslinging . | . . . . . . Exploded 1 | . . . . . 1 Melee . | . . . . . . Uniques/NPCs Destroyed . | . . . . . . Combat | -11 -10 -10 -10 -9 -8 -------- Run | Scr Mat Min Exi Min Mat Damage Taken 1894 | . 772 269 296 170 387 Core 1588 | . 628 234 244 138 344 Absorbed by Shields . | . . . . . . Redirected to Core 1028 | . 480 113 181 106 148 Core Remaining (%) 78 | 100 . . . 56 . Volleys Fired 141 | 2 89 13 9 15 13 Largest 2 | 2 2 2 2 2 2 Hottest 80 | 60 80 80 80 80 80 Shots Fired 274 | 4 177 26 18 31 18 Gun 159 | 4 108 13 9 16 9 Cannon 110 | . 69 13 9 15 4 Launcher 5 | . . . . . 5 Special . | . . . . . . Kinetic 137 | 2 88 13 9 16 9 Thermal 132 | 2 89 13 9 15 4 Explosive . | . . . . . . Electromagnetic 5 | . . . . . 5 Robot Hit Streak 9 | 4 8 6 4 5 9 Robot Miss Streak 3 | . 3 2 2 3 1 Penetration Max . | . . . . . . Secondary Targets 1 | . 1 . . . . Max Gunslinging Chain 1 | . 1 . . . . Shots Hit Robots 135 | 4 81 14 12 14 10 Core Hits 65 | 1 34 7 6 10 7 Critical Hits 2 | . 1 . 1 . . Critical Kills 2 | . 1 . 1 . . Critical Parts Destroyed . | . . . . . . Melee Attacks . | . . . . . . Impact . | . . . . . . Slashing . | . . . . . . Piercing . | . . . . . . Sneak Attacks . | . . . . . . Combat Hostiles . | . . . . . . Follow-up Attacks . | . . . . . . Damage Inflicted 3061 | 35 1516 223 203 263 821 Guns 846 | 35 557 61 77 69 47 Cannons 1110 | . 610 162 126 194 18 Explosions 1105 | . 349 . . . 756 Melee . | . . . . . . Ramming . | . . . . . . Kinetic 649 | 14 381 61 77 69 47 Thermal 1850 | 21 948 162 126 194 399 Explosive 187 | . 187 . . . . Electromagnetic 375 | . . . . . 375 Impact . | . . . . . . Slashing . | . . . . . . Piercing . | . . . . . . Highest Corruption 6 | . 4 4 6 6 . Average Corruption 4 | . 3 4 4 6 . Corruption Purged . | . . . . . . Effects 56 | . 30 10 7 9 . Message Errors 15 | . 7 2 2 4 . Matter Fused 11 | . 6 1 3 1 . Heat Flow Errors 5 | . 2 3 . . . Energy Discharges 8 | . 5 1 2 . . Data Loss (minor) 5 | . 2 2 . 1 . Data Loss (major) 1 | . . . . 1 . Misfires 1 | . . . . 1 . Targeting Errors 10 | . 8 1 . 1 . Overload Shots . | . . . . . . Overflow Damage 210 | . 137 . . . 73 Projectiles 19 | . 19 . . . . Explosions 191 | . 118 . . . 73 Melee . | . . . . . . Knockbacks . | . . . . . . Impact . | . . . . . . Kinetic . | . . . . . . Secondary . | . . . . . . Self-Inflicted Damage 102 | . 102 . . . . Shots 2 | . 2 . . . . Rammed . | . . . . . . Targets Rammed . | . . . . . . Kicked . | . . . . . . Crushed . | . . . . . . Highest Temperature 276 | 20 276 219 . 22 . Average Temperature 91 | 15 101 63 . 9 . Received Heat Transfer 576 | . 342 114 . 21 99 Effects 3 | . 3 . . . . Interference 3 | . 3 . . . . Siege Activations . | . . . . . . Robots Corrupted . | . . . . . . Combat Hostiles . | . . . . . . Parts Fried . | . . . . . . Impact Corruptions . | . . . . . . Robots Melted . | . . . . . . Combat Hostiles . | . . . . . . Parts Melted 2 | . . . . 1 1 Heat Transferred 3194 | 50 1845 333 222 407 337 Parts Sabotaged . | . . . . . . Parts Stolen . | . . . . . . Parts Stripped . | . . . . . . Power Chain Reactions 1 | . . . . . 1 Missiles Intercepted . | . . . . . . Alert | -11 -10 -10 -10 -9 -8 ------- Run | Scr Mat Min Exi Min Mat Peak Influence 501 | 5 501 388 . 145 252 Average Influence 223 | 1 295 267 . 43 153 Maximum Alert Level 2 | . 2 1 . . 1 Low Security (%) 43 | 100 27 21 . 100 64 Level 1 38 | . 35 78 . . 35 Level 2 17 | . 37 . . . . Level 3 . | . . . . . . Level 4 . | . . . . . . Level 5 . | . . . . . . High Security . | . . . . . . Max Security . | . . . . . . Squads Dispatched 8 | . 6 . . 1 1 Investigation 5 | . 4 . . . 1 Extermination . | . . . . . . Reinforcement 2 | . 2 . . . . Assault 1 | . . . . 1 . Garrison . | . . . . . . Intercept . | . . . . . . Construction Impeded . | . . . . . . Haulers Reinforced . | . . . . . . Stealth | -11 -10 -10 -10 -9 -8 --------- Run | Scr Mat Min Exi Min Mat Distress Signals 4 | . 1 . . 2 1 Communications Jammed . | . . . . . . Distress Signals . | . . . . . . Times Spotted 65 | . 27 8 11 13 6 Peak Tracking Total 11 | . 6 3 9 11 5 Tactical Retreats 5 | . 1 . 2 2 . Traps | -11 -10 -10 -10 -9 -8 ------- Run | Scr Mat Min Exi Min Mat Traps Triggered 6 | . 4 . . 2 . Indirectly . | . . . . . . Trap Hack Attempts . | . . . . . . Triggered . | . . . . . . Disarmed . | . . . . . . Reprogrammed . | . . . . . . Reused . | . . . . . . Traps Extracted . | . . . . . . Installed . | . . . . . . Triggered . | . . . . . . Exploded 1 | . . . 1 . . Machines | -11 -10 -10 -10 -9 -8 ---------- Run | Scr Mat Min Exi Min Mat Machines Disabled 16 | . 9 . . . 7 Max in Single Turn 6 | . 4 . . . 6 Machines Sabotaged . | . . . . . . Garrisons Compromised . | . . . . . . Overloaded Fab Kills . | . . . . . . Fab Network Shutdowns . | . . . . . . Hacking | -11 -10 -10 -10 -9 -8 --------- Run | Scr Mat Min Exi Min Mat Machines Accessed 8 | . 4 . 1 1 2 Terminals 4 | . 2 . . . 2 Fabricators . | . . . . . . Repair Stations . | . . . . . . Recycling Units 2 | . 2 . . . . Scanalyzers . | . . . . . . Garrison Access . | . . . . . . Total Hacks 23 | . 14 . 1 1 7 Successful 9 | . 5 . 1 1 2 Failed 13 | . 9 . . . 4 Catastrophic . | . . . . . . Database Lockouts 1 | . . . . . 1 Manual 14 | . 6 . 1 . 7 Terminals 15 | . 8 . . . 7 Fabricators . | . . . . . . Repair Stations . | . . . . . . Recycling Units 6 | . 6 . . . . Scanalyzers . | . . . . . . Garrison Access . | . . . . . . Terminal Hacks 4 | . 1 . 1 1 1 Part Schematic 1 | . . . . . 1 Robot Analysis 1 | . 1 . . . . Open Door 1 | . . . . 1 . EX-Prototype ID Bank 1 | . . . 1 . . Fabricator Hacks . | . . . . . . Repair Station Hacks . | . . . . . . Recycling Unit Hacks 2 | . 2 . . . . Retrieve Components 2 | . 2 . . . . Scanalyzer . | . . . . . . Garrison Access Hacks . | . . . . . . Unauthorized Hacks 9 | . 4 . . . 5 Terminals 1 | . . . . . 1 Botnet 1 | . . . . . 1 Fabricators . | . . . . . . Repair Stations . | . . . . . . Recycling Units 2 | . 2 . . . . Tunnel 2 | . 2 . . . . Scanalyzers . | . . . . . . Garrison Access . | . . . . . . Data Cores Recovered . | . . . . . . Used . | . . . . . . Hacking Detections 4 | . 2 . . . 2 Full Trace Events 2 | . 2 . . . . Feedback Events . | . . . . . . Feedback Blocked . | . . . . . . Robot Schematics Acquired . | . . . . . . Robots Built . | . . . . . . Matter . | . . . . . . Time . | . . . . . . Total Robot Build Rating . | . . . . . . Part Schematics Acquired 1 | . . . . . 1 Parts Built . | . . . . . . Matter . | . . . . . . Time . | . . . . . . Total Part Build Rating . | . . . . . . Parts Repaired . | . . . . . . Time . | . . . . . . Parts Recycled . | . . . . . . Recycled Matter . | . . . . . . Retrieved Matter . | . . . . . . Retrieved Components 6 | . 6 . . . . Parts Scanalyzed . | . . . . . . Part Schematics Acquired . | . . . . . . Parts Damaged . | . . . . . . Bothacking | -11 -10 -10 -10 -9 -8 ------------ Run | Scr Mat Min Exi Min Mat Used RIF Installer . | . . . . . . Robots Hacked . | . . . . . . Non-combat . | . . . . . . Combat . | . . . . . . Robot Hacks Applied . | . . . . . . Relay Couplers Released . | . . . . . . Robots Rewired . | . . . . . . Allies Hacked . | . . . . . . Hacks Repelled . | . . . . . . Allies | -11 -10 -10 -10 -9 -8 -------- Run | Scr Mat Min Exi Min Mat Total Allies 4 | . . 3 . 1 . Largest Group 3 | . . 3 1 1 . Highest-Rated Group 40 | . . 40 8 31 . Highest-Rated Ally 31 | . . 16 8 31 . Total Orders 6 | . . . 5 1 . GOTO 4 | . . . 4 . . FOLLOW 1 | . . . 1 . . EXPLORE 1 | . . . . 1 . Ally Attacks 25 | . . 20 2 3 . Total Damage 269 | . . 195 10 64 . Kills 9 | . . 6 1 2 . Allies Corrupted . | . . . . . . Allies Melted . | . . . . . . Intel | -11 -10 -10 -10 -9 -8 ------- Run | Scr Mat Min Exi Min Mat Robot Analysis Total 1 | . 1 . . . . Derelict Logs Recovered 1 | . . 1 . . . Drone Launches 1 | . . . 1 . . Drone Recoveries . | . . . . . . Exploration | -11 -10 -10 -10 -9 -8 ------------- Run | Scr Mat Min Exi Min Mat Turns Passed 2109 | 63 833 459 349 337 68 Spaces Moved 1398 | 52 432 372 290 214 38 Core 1 | 1 . . . . . Treads . | . . . . . . Legs . | . . . . . . Wheels 1397 | 51 432 372 290 214 38 Hover . | . . . . . . Flight . | . . . . . . Fastest Speed 50 | 50 90 90 90 90 90 Average Speed 89 | 89 90 90 90 90 90 Slowest Speed 90 | 90 90 90 90 90 90 Overloaded Moves . | . . . . . . Propulsion Burnouts . | . . . . . . Robots Hopped . | . . . . . . Cave-ins Triggered . | . . . . . . Exploration Rate (%) 49 | 3 66 90 66 61 8 Regions Visited 5 Branch Regions 3 Pre-discovered Areas 3 | . 2 1 . . . Known Exits Taken . | . . . . . . Unknown Exits Taken 5 | 1 1 1 1 1 . Scrap Searched 2 | . . 2 . . . Spaces Dug . | . . . . . . Terrain Destroyed 117 | . 75 . . . 42 Melee . | . . . . . . Projectile . | . . . . . . AOE 117 | . 75 . . . 42 Actions | -11 -10 -10 -10 -9 -8 --------- Run | Scr Mat Min Exi Min Mat Total 1975 | 61 702 471 359 329 53 Wait 364 | 1 158 65 59 81 . Move 1393 | 51 431 371 289 213 38 Hop . | . . . . . . Pick Up 7 | 1 . 1 1 3 1 Fast Attach 10 | 6 4 . . . . Attach 1 | . . . . . 1 Detach 1 | . 1 . . . . Swap 3 | . 2 1 . . . Drop 8 | . 4 2 . 2 . Fire 141 | 2 89 13 9 15 13 Melee . | . . . . . . Ram . | . . . . . . Kick . | . . . . . . Crush . | . . . . . . Escape Stasis . | . . . . . . Rewire . | . . . . . . Trap . | . . . . . . Miscellaneous 47 | . 13 18 1 15 . Route ------- -11/Scrapyard -10/Materials (discovered 3 exits: [*Mat x2] / [*Min]) -10/Mines (discovered 3 exits: [*Mat x2] / *Exi) -10/Exiles -9/Mines (discovered 2 exits: *Mat x2) -8/Materials History --------- Turn | Location | Event 2 | -11/Scrapyard | Met Revision 17 2 | -11/Scrapyard | Upgraded with Propulsion slot (x1) 2 | -11/Scrapyard | Upgraded with Utility slot (x1) 2 | -11/Scrapyard | Upgraded with Weapon slot (x1) 15 | -11/Scrapyard | Discovered new exit (range 16) 64 | -11/Scrapyard | Entered Materials 306 | -10/Materials | Build established: Skirmisher 316 | -10/Materials | Discovered new exit (range 13) 429 | -10/Materials | Reached level 2 454 | -10/Materials | Core integrity fell below 50% 627 | -10/Materials | Discovered new exit (range 3) 832 | -10/Materials | Discovered new exit (range 15) 852 | -10/Materials | Reached level 3 897 | -10/Materials | Entered Mines 920 | -10/Mines | Core integrity fell below 20% 1011 | -10/Mines | Learned location of Mines (-9) 1037 | -10/Mines | Assisted by bots powering up and referring to "LRC-V3" 1199 | -10/Mines | Discovered new exit (range 15) 1202 | -10/Mines | Reached level 4 1217 | -10/Mines | Discovered new exit (range 16) 1220 | -10/Mines | A weapon hastily lodged in a ceiling crevice suddenly fell to the ground 1267 | -10/Mines | Discovered new exit (range 14) 1344 | -10/Mines | Deemed a non-threat by the Exiles lab entrance 1356 | -10/Mines | Entered Exiles 1356 | -10/Exiles | Accompanied by 1 ally 1380 | -10/Exiles | Met 8R-AWN 1394 | -10/Exiles | Met EX-HEX 1422 | -10/Exiles | Met EX-BIN 1435 | -10/Exiles | Aligned with FarCom system 1436 | -10/Exiles | Given EX-Vault access code 1458 | -10/Exiles | Opened EX-Vault 1463 | -10/Exiles | Found Field Lobotomy Kit 1487 | -10/Exiles | Warned to stay clear of 0b10 Research branches 1497 | -10/Exiles | Exiles lab attacked by MAIN.C 1538 | -10/Exiles | Discovered new exit (range 62) 1705 | -10/Exiles | Left Exiles lab with Field Lobotomy Kit 1705 | -10/Exiles | Entered Mines 1705 | -9/Mines | Accompanied by 1 ally 1706 | -9/Mines | Met a Derelict testing a Signal Generator 1707 | -9/Mines | Reached level 5 1709 | -9/Mines | Discovered new exit (range 52) 1709 | -9/Mines | Discovered new exit (range 61) 1747 | -9/Mines | Assembled infested the area 1752 | -9/Mines | Assisted by a Guerilla fighting off Assembled 1759 | -9/Mines | Build established: Hacker-Skirmisher 1972 | -9/Mines | Met a Derelict who couldn't figure out how to use a Trap Extractor 2042 | -9/Mines | Entered Materials 2044 | -8/Materials | Reached level 6 2052 | -8/Materials | Central database locked down 2067 | -8/Materials | Core integrity fell below 50% 2089 | -8/Materials | Reached level 7 2097 | -8/Materials | Core integrity fell below 20% 2110 | -8/Materials | Destroyed by G-47 Trooper with Particle Gun Last Messages --------------- 02084_ Connecting with Terminal... 02086_ Slug penetrates M0-JSV(g). 02086_ M0-JSV(g) destroyed. 02086_ R-06 Scavenger collects Mni. Grenade Launcher. 02089_ Reached level 7. 02089_ H-55 Commando destroyed. 02090_ Penetrated by Slug. 02091_ Chain reaction triggered in Lgt. Nuclear Core. 02091_ Destroyed Carbon-fiber Leg. 02093_ H-55 Commando misfires. 02096_ H-55 Commando heat damages Assault Rifle. 02096_ R-06 Scavenger collects Carbon-fiber Leg. 02096_ Penetrated by Slug. 02096_ Acquired Protomatter-65. 02097_ R-06 Scavenger collects Imp. Heat Sink. 02099_ Penetrated by Slug. 02101_ R-06 Scavenger collects Carbon-fiber Leg. 02104_ R-06 Scavenger collects Imp. Heat Sink. 02105_ Processing Tank disabled. 02105_ Destroyed Com. Wheel. Map ----- +----------------------------------------------------+ | ?????????????????????????????????? | | ?????????????????????????????????? | | ?????????????????????????????????? | | ???????? ????????????????????????? | | ????????" ??????##???????????????? | | ???????????? ???????????????????? | | ???? ?"????? ?? ?? ? ????????????? | | ?????? ???#? ??? ??????????????? | | ???????###?#? ? ??#?????????????? | | ?#???####?## ? ? ? ??????????? | | #??#??#?#?##?##?####? #?????????? | | #???#?#?############ #??#??????? | | #??#?##?# ##### #?##??????? | | ?###?##?# !! #####a #####?#???? | | ?######## !! ##### g ######????? | | #??###?## !! ##### #######???? | | ??#?###?# ##### ########??? | | ###?##?## ##### #########?? | | ############+####### #########?? | | #?####### ##########? | | #?#?##### ##########? | | ######### ########### | | ############# !########### | | ### # =%## # | | ?## # g |#""" | | #?# @ ; g h [[ | | ?## # r % | | ### # g | | ### # " | | ### #######+##" | | ### ##### T | | ##########+###### | | ?######### ###### "" | | ####?##### ###### """" % % | | ####?##### ###### "" %" | | ?#########w###### ? | | ##?##?#### ###########" | | ? ? # #### | | ? """ # ? #### " ? ? | | ??????"? # ? #####" ?? | | ???????" ? """ #### " ??? | | ?????????? ""? ?#####"?????????? | | ????????????"?" ?#####" ??????? | | ??????????????? ?# ???#?????????? | | ??????????????????? ?????????????? | | ?????????????????????????????????? | | ?????????????????????????????????? | | ?????????????????????????????????? | | ?????????????????????????????????? | | ?????????????????????????????????? | +----------------------------------------------------+ Best States ------------- Heat Dissipation 37 Energy Generation 14 Energy Capacity 250 Matter Stores 300 Matter Capacity 300 Sight Range 16 Robot Scan Range 20 Terrain Scan Range 16 Terrain Scan Density 710 Resistance: KI 10 Resistance: TH 10 Evasion (%) 42 Offensive Hacking 15 Defensive Hacking 5 Item Schematics ----------------- Adv. Signal Interpreter | -8/Materials | Hacked Robot Schematics ------------------ None Fabricated ------------ Nothing Alien Tech Used ----------------- None Achievements -------------- None Challenges ------------ None RPGLIKE | -11 -10 -10 -10 -9 -8 --------- Run | Scr Mat Min Exi Min Mat Levels Raised 6 | . 2 1 . 1 2 XP Earned 12200 | 3000 3194 1903 658 1200 2245 XP Spent 9815 | 3000 1370 . 2795 1750 900 Upgrades 36 | 12 11 . 9 2 2 Propulsion Slot 1 | 1 . . . . . Utility Slot 1 | 1 . . . . . Weapon Slot 1 | 1 . . . . . Heat Dissipation 2 | . 2 . . . . Inventory Capacity 4 | 1 . . 1 2 . Sensor Range 10 | . 8 . 2 . . Terrain Scan Density 7 | 5 . . 2 . . Ranged Accuracy 2 | . . . . . 2 Hack Attack % 3 | 2 . . 1 . . Hack Defense % 1 | 1 . . . . . KI Resistance % 2 | . . . 2 . . TH Resistance % 2 | . 1 . 1 . . Protomatter Created 221 | . 88 45 24 64 . Integrity Restored 981 | . 264 393 . 324 . Core 981 | . 264 393 . 324 . Protomatter Decayed 311 | . . . 81 230 . Game ------ Seed SmartbombFlakFlamer Manual? 0 Play Time 00:20:11 Cumulative 430.9 hours Start 2019.12.22 @ 11:38:48 End 2019.12.22 @ 11:57:21 Sessions 1 Manual Loads 0 Difficulty Rogue Special Mode Winter2019/RPGLIKE Game No. 331 Rogue 327 Adventurer 4 Explorer 0 Win Type - Total 39 Types 31/3/1/2/2/0/0 Lore% 93 Gallery% 94 Achievement% 91 Wizard Run 0 Options --------- ASCII 0 Keyboard 0 Movement Vi Keybinds 0 Fullscreen 0 Font 16/Terminus Map View 76x50 Tactical HUD 1 Map Filters NONE Filters NONE Steam 1 RUN: a4c9a61c-1d34-4baa-8f1a-e32ebc9cd5df